fUST/lending_fUST_20260311
["ID","MTS","AMOUNT","RATE_DAILY","PERIOD"]
[408196697,1773212595552,500.0,1.902e-05,2]
[408196698,1773212596311,500.0,1.902e-05,2]
[408196699,1773212596645,151.0,0.000102,120]
[408196700,1773212597064,500.0,1.902e-05,2]
[408196701,1773212597820,500.0,1.902e-05,2]
[408196702,1773212598922,500.0,1.902e-05,2]
[408196703,1773212599664,500.0,1.902e-05,2]
[408196704,1773212600420,500.0,1.902e-05,2]
[408196705,1773212601172,500.0,1.902e-05,2]
[408196708,1773212601944,500.0,1.902e-05,2]
[408196709,1773212602703,500.0,1.902e-05,2]
[408196710,1773212603456,500.0,1.902e-05,2]
[408196711,1773212604203,500.0,1.902e-05,2]
[408196712,1773212606035,500.0,1.902e-05,2]
[408196713,1773212606788,500.0,1.902e-05,2]
[408196714,1773212607541,500.0,1.902e-05,2]
[408196715,1773212608290,500.0,1.902e-05,2]
[408196716,1773212609168,500.0,1.902e-05,2]
[408196717,1773212609917,500.0,1.902e-05,2]
[408196718,1773212610702,500.0,1.902e-05,2]
[408196719,1773212611447,500.0,1.902e-05,2]
[408196720,1773212612208,500.0,1.902e-05,2]
[408196721,1773212612955,500.0,1.902e-05,2]
[408196722,1773212613706,500.0,1.902e-05,2]
[408196723,1773212614471,500.0,1.902e-05,2]
[408196724,1773212615672,500.0,1.902e-05,2]
[408196725,1773212615994,500.0,1.902e-05,2]
[408196726,1773212616753,500.0,1.902e-05,2]
[408196727,1773212617511,500.0,1.902e-05,2]
[408196728,1773212618262,500.0,1.902e-05,2]
[408196729,1773212619018,500.0,1.902e-05,2]
[408196730,1773212619778,500.0,1.902e-05,2]
[408196731,1773212620568,500.0,1.902e-05,2]
[408196732,1773212621310,500.0,1.902e-05,2]
[408196733,1773212622109,500.0,1.902e-05,2]
[408196734,1773212623199,500.0,1.902e-05,2]
[408196735,1773212623957,500.0,1.902e-05,2]
[408196736,1773212624721,500.0,1.902e-05,2]
[408196737,1773212635648,151.0,0.000102,120]
[408196738,1773212669181,151.0,0.000102,120]
[408196739,1773212692203,500.0,1.902e-05,2]
[408196740,1773212692974,266.0,1.902e-05,2]
[408196741,1773212718704,151.0,0.000102,120]
[408196742,1773212749379,151.0,0.000102,120]
[408196743,1773212774382,20875.8226802,2.001e-05,2]
[408196744,1773212786305,151.0,0.000102,120]
[408196745,1773212825611,151.0,0.000102,120]
[408196746,1773212840130,-232.19344414,2.502e-05,2]
[408196750,1773212858611,151.0,0.000102,120]
[408196751,1773212897922,151.0,0.000102,120]
[408196752,1773212929038,151.0,0.000102,120]
[408196753,1773212967966,151.0,0.000102,120]
[408196754,1773213002897,156.28,2e-05,2]
[408196755,1773213003194,156.28,2e-05,2]
[408196756,1773213004020,156.28,2e-05,2]
[408196757,1773213004067,156.28,2e-05,2]
[408196758,1773213006538,151.0,0.000102,120]
[408196780,1773213032114,-156.28,2.1e-05,2]
[408196782,1773213032124,-156.28,2.1e-05,2]
[408196784,1773213032133,-156.28,2.1e-05,2]
[408196786,1773213032143,-156.28,2.1e-05,2]
[408196788,1773213032153,-156.28,2.1e-05,2]
[408196790,1773213032162,-156.28,2.1e-05,2]
[408196792,1773213032172,-80.96750205,2.1e-05,2]
[408196794,1773213032183,-75.31249795,2.1e-05,2]
[408196796,1773213032192,-156.28,2.1e-05,2]
[408196799,1773213032203,-300.0,2.141e-05,2]
[408196800,1773213032212,-300.0,2.141e-05,2]
[408196803,1773213032222,-300.0,2.141e-05,2]
[408196805,1773213032231,-300.0,2.141e-05,2]
[408196807,1773213032240,-300.0,2.141e-05,2]
[408196809,1773213032250,-300.0,2.141e-05,2]
[408196811,1773213032260,-300.0,2.141e-05,2]
[408196813,1773213032269,-300.0,2.141e-05,2]
[408196815,1773213032278,-300.0,2.141e-05,2]
[408196817,1773213032287,-300.0,2.141e-05,2]
[408196818,1773213032296,-288.53725233,2.15e-05,2]
[408196821,1773213032305,-156.28,2.2e-05,2]
[408196822,1773213032314,-156.28,2.2e-05,2]
[408196824,1773213032323,-156.28,2.2e-05,2]
[408196827,1773213032333,-156.28,2.2e-05,2]
[408196828,1773213032342,-5000.0,2.501e-05,2]
[408196830,1773213032351,-300.0,2.526e-05,2]
[408196832,1773213032359,-559.0,2.526e-05,2]
[408196834,1773213032368,-2453.99013754,2.527e-05,2]
[408196836,1773213032376,-152.37459919,2.527e-05,2]
[408196838,1773213032384,-500.0,2.533e-05,2]
[408196840,1773213032392,-500.0,2.533e-05,2]
[408196842,1773213032401,-500.0,2.533e-05,2]
[408196844,1773213032410,-500.0,2.533e-05,2]
[408196846,1773213032419,-57.1986959,2.533e-05,2]
[408196848,1773213032431,-442.8013041,2.533e-05,2]
[408196850,1773213032441,-200.0,2.553e-05,2]
[408196852,1773213032451,-14023.05298503,2.616e-05,2]
[408196854,1773213032462,-440.41335325,2.616e-05,2]
[408196904,1773213036963,151.0,0.000102,120]
[408196906,1773213038550,-300.0,2.141e-05,2]
[408196907,1773213038559,-300.0,2.141e-05,2]
[408196908,1773213038570,-300.0,2.141e-05,2]
[408196909,1773213038579,-300.0,2.141e-05,2]
[408196910,1773213038589,-300.0,2.141e-05,2]
[408196911,1773213038604,-220.30055279,2.616e-05,2]
[408196912,1773213038866,-25.79927157,2.616e-05,2]
[408196913,1773213038878,-34425.54808766,2.616e-05,2]
[408196914,1773213038887,-2278.57717037,2.653e-05,2]
[408197108,1773213042474,-35.14258157,2.653e-05,2]
[408197111,1773213042485,-686.60948161,2.653e-05,2]
[408197170,1773213043580,-883.87557175,2.653e-05,2]
[408197171,1773213043591,-500.0,2.728e-05,2]
[408197172,1773213043606,-420.0,2.779e-05,2]
[408197173,1773213043615,-500.0,2.834e-05,2]
[408197174,1773213043625,-500.0,2.834e-05,2]
[408197175,1773213043635,-500.0,2.834e-05,2]
[408197176,1773213043648,-500.0,2.834e-05,2]
[408197177,1773213043658,-500.0,2.834e-05,2]
[408197178,1773213043667,-162.380719,2.834e-05,2]
[408197179,1773213043676,-500.0,2.834e-05,2]
[408197180,1773213043686,-445.202766,2.834e-05,2]
[408197181,1773213043696,-395.65576828,2.834e-05,2]
[408197182,1773213043707,-1562.20023172,2.834e-05,2]
[408197183,1773213043717,-500.0,2.834e-05,2]
[408197184,1773213043726,-500.0,2.834e-05,2]
[408197185,1773213043735,-162.380719,2.834e-05,2]
[408197186,1773213043744,-212.45775925,2.834e-05,2]
[408197187,1773213043756,-287.54224075,2.834e-05,2]
[408197188,1773213043766,-500.0,2.834e-05,2]
[408197189,1773213043775,-500.0,2.834e-05,2]
[408197190,1773213043785,-500.0,2.834e-05,2]
[408197191,1773213043795,-500.0,2.834e-05,2]
[408197192,1773213043804,-500.0,2.834e-05,2]
[408197193,1773213043813,-500.0,2.834e-05,2]
[408197194,1773213043822,-500.0,2.834e-05,2]
[408197195,1773213043831,-500.0,2.834e-05,2]
[408197196,1773213043840,-500.0,2.834e-05,2]
[408197197,1773213043849,-27.45775911,2.834e-05,2]
[408197198,1773213043861,-123.54224089,2.834e-05,2]
[408197199,1773213043870,-151.0,2.834e-05,2]
[408197200,1773213043879,-250.0,2.834e-05,2]
[408197202,1773213043888,-151.0,2.834e-05,2]
[408197204,1773213043897,-3570.79096986,2.834e-05,2]
[408197209,1773213046619,-1806.05403014,2.834e-05,2]
[408197210,1773213046629,-250.0,2.834e-05,2]
[408197211,1773213046639,-151.0,2.834e-05,2]
[408197212,1773213046649,-217.72656565,2.834e-05,2]
[408197213,1773213046658,-151.0,2.834e-05,2]
[408197214,1773213046667,-331.51828169,2.834e-05,2]
[408197217,1773213071926,151.0,0.000102,120]
[408197218,1773213106834,151.0,0.000102,120]
[408197220,1773213138007,151.0,0.000102,120]
[408197243,1773213176098,151.0,0.000102,120]
[408197244,1773213206881,151.0,0.000102,120]
[408197245,1773213246217,151.0,0.000102,120]
[408197246,1773213286286,151.0,0.000102,120]
[408197247,1773213319381,151.0,0.000102,120]
[408197248,1773213338498,236.5400983,1.971e-05,2]
[408197249,1773213357221,151.0,0.000102,120]
[408197261,1773213391844,151.0,0.000102,120]
[408197271,1773213432002,151.0,0.000102,120]
[408197282,1773213478762,151.0,0.000102,120]
[408197289,1773213512953,151.0,0.000102,120]
[408197290,1773213549115,151.0,0.000102,120]
[408197291,1773213563328,499.5675956,1.42e-05,2]
[408197292,1773213582059,151.0,0.000102,120]
[408197294,1773213619477,151.0,0.000102,120]
[408197295,1773213658904,151.0,0.000102,120]
[408197296,1773213699551,151.0,0.000102,120]
[408197297,1773213737107,151.0,0.000102,120]
[408197298,1773213738076,1500.538,2e-05,2]
[408197299,1773213751910,500.0,1.902e-05,2]
[408197300,1773213752666,500.0,1.902e-05,2]
[408197301,1773213753425,500.0,1.902e-05,2]
[408197302,1773213754166,500.0,1.902e-05,2]
[408197303,1773213754926,500.0,1.902e-05,2]
[408197304,1773213755676,500.0,1.902e-05,2]
[408197305,1773213756459,500.0,1.902e-05,2]
[408197306,1773213757844,500.0,1.902e-05,2]
[408197307,1773213757957,500.0,1.902e-05,2]
[408197308,1773213758723,500.0,1.902e-05,2]
[408197309,1773213759498,500.0,1.902e-05,2]
[408197310,1773213760275,500.0,1.902e-05,2]
[408197311,1773213761041,500.0,1.902e-05,2]
[408197312,1773213761792,500.0,1.902e-05,2]
[408197313,1773213762539,500.0,1.902e-05,2]
[408197314,1773213777028,151.0,0.000102,120]
[408197315,1773213815928,151.0,0.000102,120]
[408197316,1773213829853,500.0,1.902e-05,2]
[408197317,1773213830601,500.0,1.902e-05,2]
[408197318,1773213831615,500.0,1.902e-05,2]
[408197319,1773213832115,500.0,1.902e-05,2]
[408197320,1773213832875,500.0,1.902e-05,2]
[408197321,1773213833639,500.0,1.902e-05,2]
[408197322,1773213834729,500.0,1.902e-05,2]
[408197323,1773213835178,500.0,1.902e-05,2]
[408197324,1773213836472,500.0,1.902e-05,2]
[408197325,1773213837225,500.0,1.902e-05,2]
[408197326,1773213838001,500.0,1.902e-05,2]
[408197327,1773213838748,500.0,1.902e-05,2]
[408197328,1773213839502,500.0,1.902e-05,2]
[408197329,1773213840398,500.0,1.902e-05,2]
[408197330,1773213841177,500.0,1.902e-05,2]
[408197331,1773213842345,500.0,1.902e-05,2]
[408197332,1773213842744,500.0,1.902e-05,2]
[408197333,1773213846285,151.0,0.000102,120]
[408197334,1773213886377,151.0,0.000102,120]
[408197335,1773213910091,500.0,1.902e-05,2]
[408197336,1773213910844,500.0,1.902e-05,2]
[408197337,1773213911603,500.0,1.902e-05,2]
[408197338,1773213912361,500.0,1.902e-05,2]
[408197339,1773213913114,500.0,1.902e-05,2]
[408197340,1773213913891,500.0,1.902e-05,2]
[408197341,1773213914650,500.0,1.902e-05,2]
[408197342,1773213915402,500.0,1.902e-05,2]
[408197343,1773213916161,500.0,1.902e-05,2]
[408197344,1773213916913,500.0,1.902e-05,2]
[408197345,1773213918300,500.0,1.902e-05,2]
[408197346,1773213918417,500.0,1.902e-05,2]
[408197347,1773213919177,500.0,1.902e-05,2]
[408197348,1773213919945,500.0,1.902e-05,2]
[408197349,1773213920716,500.0,1.902e-05,2]
[408197350,1773213921475,500.0,1.902e-05,2]
[408197351,1773213922218,500.0,1.902e-05,2]
[408197352,1773213922987,500.0,1.902e-05,2]
[408197353,1773213923752,500.0,1.902e-05,2]
[408197354,1773213924876,500.0,1.902e-05,2]
[408197355,1773213925639,500.0,1.902e-05,2]
[408197356,1773213926392,500.0,1.902e-05,2]
[408197357,1773213927144,500.0,1.902e-05,2]
[408197358,1773213927891,500.0,1.902e-05,2]
[408197359,1773213928849,151.0,0.000102,120]
[408197360,1773213928889,500.0,1.902e-05,2]
[408197361,1773213929469,500.0,1.902e-05,2]
[408197362,1773213930217,500.0,1.902e-05,2]
[408197363,1773213931337,500.0,1.902e-05,2]
[408197364,1773213932083,500.0,1.902e-05,2]
[408197365,1773213932884,500.0,1.902e-05,2]
[408197366,1773213933629,500.0,1.902e-05,2]
[408197367,1773213934382,500.0,1.902e-05,2]
[408197368,1773213935120,500.0,1.902e-05,2]
[408197369,1773213935887,400.0,1.902e-05,2]
[408197370,1773213961906,151.0,0.000102,120]
[408197371,1773213999852,151.0,0.000102,120]
[408197372,1773214002559,500.0,1.902e-05,2]
[408197378,1773214036137,151.0,0.000102,120]
[408197397,1773214068150,151.0,0.000102,120]
[408197398,1773214118345,151.0,0.000102,120]
[408197399,1773214152253,151.0,0.000102,120]
[408197400,1773214153187,-2000.0,2.184e-05,2]
[408197401,1773214153214,-3000.0,2.184e-05,2]
[408197402,1773214153234,-288.61546307,2.216e-05,2]
[408197403,1773214153254,-800.0,2.225e-05,2]
[408197404,1773214153273,-800.0,2.293e-05,2]
[408197405,1773214153294,-554.73083502,2.372e-05,2]
[408197406,1773214154940,-245.26916498,2.372e-05,2]
[408197407,1773214154964,-800.0,2.463e-05,2]
[408197408,1773214186962,151.0,0.000102,120]
[408197409,1773214202946,161.18,2e-05,2]
[408197411,1773214219295,151.0,0.000102,120]
[408197412,1773214224972,-219.27956983,2.538e-05,2]
[408197413,1773214225007,-3744.20246098,2.538e-05,2]
[408197434,1773214232319,-280.72771399,2.538e-05,2]
[408197757,1773214243529,-755.7902552,2.538e-05,2]
[408197758,1773214243539,-132.03603097,2.564e-05,2]
[408197759,1773214243641,-167.96396903,2.564e-05,2]
[408197760,1773214243652,-300.0,2.565e-05,2]
[408197761,1773214243662,-300.0,2.565e-05,2]
[408197762,1773214243672,-300.0,2.565e-05,2]
[408197763,1773214243684,-300.0,2.565e-05,2]
[408197764,1773214243693,-208.6458526,2.565e-05,2]
[408197765,1773214243706,-91.3541474,2.565e-05,2]
[408197766,1773214243716,-300.0,2.565e-05,2]
[408197767,1773214243727,-300.0,2.565e-05,2]
[408197768,1773214243736,-100.81295077,2.565e-05,2]
[408197776,1773214246609,-4026.42487492,2.513e-05,2]
[408197777,1773214252107,151.0,0.000102,120]
[408197778,1773214256749,202.49,0.000102,120]
[408197779,1773214288402,151.0,0.000102,120]
[408197780,1773214328441,151.0,0.000102,120]
[408197783,1773214366789,151.0,0.000102,120]
[408197784,1773214400435,500.0,1.902e-05,2]
[408197785,1773214401185,499.96,1.902e-05,2]
[408197786,1773214415481,151.0,0.000102,120]
[408197787,1773214446721,151.0,0.000102,120]
[408197788,1773214479102,151.0,0.000102,120]
[408197789,1773214517502,151.0,0.000102,120]
[408197790,1773214559284,151.0,0.000102,120]
[408197791,1773214598761,151.0,0.000102,120]
[408197792,1773214639819,151.0,0.000102,120]
[408197793,1773214678955,151.0,0.000102,120]
[408197794,1773214718131,151.0,0.000102,120]
[408197806,1773214745738,167.3370074,7.97e-06,2]
[408197807,1773214758537,151.0,0.000102,120]
[408197808,1773214792475,151.0,0.000102,120]
[408197811,1773214846953,151.0,0.000102,120]
[408197813,1773214879166,151.0,0.000102,120]
[408197814,1773214919052,151.0,0.000102,120]
[408197816,1773214956775,151.0,0.000102,120]
[408197817,1773214991901,151.0,0.000102,120]
[408197818,1773215010392,-200.0,2.425e-05,2]
[408197819,1773215038078,151.0,0.000102,120]
[408197820,1773215072020,151.0,0.000102,120]
[408197821,1773215106052,151.0,0.000102,120]
[408197823,1773215148998,151.0,0.000102,120]
[408197824,1773215179405,151.0,0.000102,120]
[408197825,1773215212173,151.0,0.000102,120]
[408197826,1773215247032,151.0,0.000102,120]
[408197827,1773215296827,151.0,0.000102,120]
[408197828,1773215336793,151.0,0.000102,120]
[408197829,1773215368846,151.0,0.000102,120]
[408197830,1773215399933,151.0,0.000102,120]
[408197831,1773215402378,183.87,2e-05,2]
[408197842,1773215432471,-780.45035752,2.353e-05,2]
[408197849,1773215432532,-4219.54964248,2.353e-05,2]
[408197851,1773215432542,-33.36245925,2.417e-05,2]
[408197854,1773215432553,-264.83656515,2.417e-05,2]
[408197856,1773215432562,-473.32170078,2.5e-05,2]
[408197982,1773215438629,-270.6,2.5e-05,2]
[408197983,1773215438692,-1261.79293251,2.5e-05,2]
[408197984,1773215438703,-448.9214157,2.576e-05,2]
[408197985,1773215438712,-300.0,2.579e-05,2]
[408197986,1773215438721,-27186.95797965,2.58e-05,2]
[408197987,1773215438732,-334.45566116,2.58e-05,2]
[408197988,1773215438756,-9329.92204689,2.58e-05,2]
[408197989,1773215438766,-2913.1536039,2.58e-05,2]
[408197990,1773215438776,-500.0,2.603e-05,2]
[408197991,1773215438786,-500.0,2.603e-05,2]
[408197992,1773215438795,-455.08982024,2.603e-05,2]
[408197993,1773215438805,-500.0,2.603e-05,2]
[408197994,1773215438815,-300.0,2.615e-05,2]
[408197995,1773215438823,-300.0,2.615e-05,2]
[408197996,1773215438833,-300.0,2.615e-05,2]
[408197997,1773215438843,-300.0,2.615e-05,2]
[408197998,1773215438852,-300.0,2.615e-05,2]
[408197999,1773215438861,-300.0,2.615e-05,2]
[408198000,1773215438870,-300.0,2.615e-05,2]
[408198001,1773215438879,-300.0,2.615e-05,2]
[408198002,1773215438889,-300.0,2.615e-05,2]
[408198003,1773215438898,-300.0,2.615e-05,2]
[408198004,1773215438907,-300.0,2.615e-05,2]
[408198005,1773215438917,-300.0,2.615e-05,2]
[408198006,1773215438926,-300.0,2.615e-05,2]
[408198007,1773215438935,-300.0,2.615e-05,2]
[408198008,1773215438945,-300.0,2.615e-05,2]
[408198009,1773215438954,-30.69590932,2.626e-05,2]
[408198010,1773215438965,-131.68480968,2.626e-05,2]
[408198011,1773215438975,-445.202766,2.626e-05,2]
[408198012,1773215438984,-500.0,2.626e-05,2]
[408198013,1773215438993,-500.0,2.626e-05,2]
[408198014,1773215439002,-667.93940107,2.626e-05,2]
[408198015,1773215439014,-1251.28231505,2.626e-05,2]
[408198016,1773215439025,-38.63428388,2.626e-05,2]
[408198017,1773215439034,-500.0,2.626e-05,2]
[408198018,1773215439045,-162.380719,2.626e-05,2]
[408198019,1773215439054,-500.0,2.626e-05,2]
[408198020,1773215439065,-500.0,2.626e-05,2]
[408198021,1773215439074,-500.0,2.626e-05,2]
[408198022,1773215439083,-500.0,2.626e-05,2]
[408198023,1773215439093,-500.0,2.626e-05,2]
[408198024,1773215439102,-500.0,2.626e-05,2]
[408198025,1773215439111,-177.47384907,2.626e-05,2]
[408198026,1773215439123,-322.52615093,2.626e-05,2]
[408198027,1773215439132,-500.0,2.626e-05,2]
[408198028,1773215439142,-500.0,2.626e-05,2]
[408198029,1773215439151,-500.0,2.626e-05,2]
[408198030,1773215439160,-500.0,2.626e-05,2]
[408198031,1773215439169,-109.5177428,2.626e-05,2]
[408198032,1773215439247,-111.08869996,2.626e-05,2]
[408198183,1773215442113,151.0,0.000102,120]
[408198375,1773215446726,-279.39355724,2.626e-05,2]
[408198376,1773215446736,-500.0,2.626e-05,2]
[408198377,1773215446746,-500.0,2.626e-05,2]
[408198378,1773215446756,-500.0,2.626e-05,2]
[408198379,1773215446766,-2150.738,2.626e-05,2]
[408198380,1773215446776,-151.0,2.626e-05,2]
[408198381,1773215446786,-151.0,2.626e-05,2]
[408198382,1773215446795,-537.6845,2.626e-05,2]
[408198383,1773215446804,-198.89226379,2.626e-05,2]
[408198384,1773215446814,-403.95279979,2.626e-05,2]
[408198385,1773215446825,-600.0,2.666e-05,2]
[408198386,1773215446834,-2030.296672,2.681e-05,2]
[408198387,1773215446844,-2105.41764886,2.736e-05,2]
[408198388,1773215446853,-10000.0,2.74e-05,2]
[408198396,1773215446863,-500.0,2.748e-05,2]
[408198397,1773215447191,-1398.60885487,2.791e-05,2]
[408198398,1773215447201,-787.0,2.8e-05,2]
[408198399,1773215447211,-10.01689755,2.835e-05,2]
[408198400,1773215477841,151.0,0.000102,120]
[408198401,1773215515962,151.0,0.000102,120]
[408198402,1773215546559,151.0,0.000102,120]
[408198403,1773215589433,151.0,0.000102,120]
[408198404,1773215626006,151.0,0.000102,120]
[408198405,1773215663202,151.0,0.000102,120]
[408198406,1773215708866,151.0,0.000102,120]
[408198407,1773215748798,151.0,0.000102,120]
[408198408,1773215785507,151.0,0.000102,120]
[408198409,1773215821830,151.0,0.000102,120]
[408198410,1773215866949,151.0,0.000102,120]
[408198411,1773215886705,-2000.0,2.231e-05,2]
[408198412,1773215887838,-2000.0,2.231e-05,2]
[408198413,1773215888413,-1000.0,2.231e-05,2]
[408198414,1773215888435,-209.03304839,2.277e-05,2]
[408198415,1773215888460,-292.23504391,2.498e-05,2]
[408198416,1773215901996,151.0,0.000102,120]
[408198417,1773215939148,151.0,0.000102,120]
[408198418,1773215942030,1015.0,2.001e-05,2]
[408198420,1773215976861,151.0,0.000102,120]
[408198421,1773215983323,-2000.0,2.622e-05,2]
[408198422,1773215984957,-184.865203,2.622e-05,2]
[408198423,1773215984979,-1815.134797,2.622e-05,2]
[408198424,1773215985011,-2000.0,2.622e-05,2]
[408198425,1773215985045,-2000.0,2.622e-05,2]
[408198426,1773215985462,-2000.0,2.622e-05,2]
[408198427,1773215985974,-2000.0,2.622e-05,2]
[408198428,1773215986311,-2000.0,2.622e-05,2]
[408198429,1773215986617,-2000.0,2.622e-05,2]
[408198430,1773215986921,-2000.0,2.622e-05,2]
[408198431,1773215987234,-2000.0,2.622e-05,2]
[408198432,1773215987685,-2000.0,2.622e-05,2]
[408198433,1773215988204,-2000.0,2.622e-05,2]
[408198434,1773215988658,-2000.0,2.622e-05,2]
[408198435,1773215990147,-2000.0,2.622e-05,2]
[408198436,1773215990489,-2000.0,2.622e-05,2]
[408198437,1773215990796,-2000.0,2.622e-05,2]
[408198438,1773215991238,-2000.0,2.622e-05,2]
[408198439,1773215991928,-2000.0,2.622e-05,2]
[408198440,1773215991980,-2000.0,2.622e-05,2]
[408198441,1773215992526,-2000.0,2.622e-05,2]
[408198442,1773215992758,-2000.0,2.622e-05,2]
[408198443,1773215993069,-2000.0,2.622e-05,2]
[408198444,1773215993438,-2000.0,2.622e-05,2]
[408198445,1773215993717,-2000.0,2.622e-05,2]
[408198446,1773215994034,-2000.0,2.622e-05,2]
[408198447,1773215994684,-2000.0,2.622e-05,2]
[408198448,1773215994830,-2000.0,2.622e-05,2]
[408198449,1773215995683,-2000.0,2.622e-05,2]
[408198450,1773215995715,-2000.0,2.622e-05,2]
[408198451,1773215995828,-2000.0,2.622e-05,2]
[408198452,1773215996262,-2000.0,2.622e-05,2]
[408198453,1773215996697,-2000.0,2.622e-05,2]
[408198454,1773215997233,-2000.0,2.622e-05,2]
[408198455,1773215997695,-2000.0,2.622e-05,2]
[408198456,1773215998161,-2000.0,2.622e-05,2]
[408198457,1773215998596,-2000.0,2.622e-05,2]
[408198458,1773215999075,-2000.0,2.622e-05,2]
[408198459,1773215999563,-2000.0,2.622e-05,2]
[408198461,1773216004269,-300.0,2.621e-05,2]
[408198462,1773216004600,-1700.0,2.622e-05,2]
[408198463,1773216004670,-2000.0,2.622e-05,2]
[408198464,1773216004916,-2000.0,2.622e-05,2]
[408198465,1773216005234,-2000.0,2.622e-05,2]
[408198466,1773216005557,-2000.0,2.622e-05,2]
[408198467,1773216006170,-2000.0,2.622e-05,2]
[408198468,1773216006233,-1335.765314,2.622e-05,2]
[408198469,1773216006257,-664.234686,2.626e-05,2]
[408198470,1773216006598,-2000.0,2.626e-05,2]
[408198471,1773216007071,-2000.0,2.626e-05,2]
[408198472,1773216011201,-335.765314,2.626e-05,2]
[408198473,1773216016898,151.0,0.000102,120]
[408198474,1773216024580,-719.00994363,2.65e-05,2]
[408198475,1773216045467,239.75141415,1.384e-05,2]
[408198476,1773216045923,239.75141415,1.411e-05,7]
[408198477,1773216046431,239.75141415,1.453e-05,14]
[408198478,1773216056955,151.0,0.000102,120]
[408198479,1773216092473,151.0,0.000102,120]
[408198480,1773216102548,-800.0,2.41e-05,2]
[408198481,1773216114275,-800.0,2.442e-05,2]
[408198482,1773216114296,-800.0,2.442e-05,2]
[408198483,1773216114318,-400.0,2.477e-05,2]
[408198484,1773216115608,-400.0,2.477e-05,2]
[408198485,1773216115630,-800.0,2.491e-05,2]
[408198486,1773216115652,-800.0,2.505e-05,2]
[408198487,1773216115925,-800.0,2.509e-05,2]
[408198488,1773216115948,-800.0,2.551e-05,2]
[408198489,1773216115969,-400.0,2.555e-05,2]
[408198490,1773216116404,-400.0,2.555e-05,2]
[408198491,1773216116426,-800.0,2.558e-05,2]
[408198492,1773216116447,-306.81123592,2.597e-05,2]
[408198493,1773216125850,151.0,0.000102,120]
[408198496,1773216154850,165.7347823,1.697e-05,2]
[408198497,1773216168610,-161.75885388,2.588e-05,2]
[408198498,1773216168696,151.0,0.000102,120]
[408198499,1773216175885,-338.24114612,2.624e-05,2]
[408198500,1773216193076,-461.75885388,2.624e-05,2]
[408198501,1773216193099,-800.0,2.628e-05,2]
[408198502,1773216193120,-738.24114612,2.64e-05,2]
[408198503,1773216194363,-61.75885388,2.64e-05,2]
[408198504,1773216194387,-1938.24114612,2.65e-05,2]
[408198505,1773216194711,-2000.0,2.65e-05,2]
[408198506,1773216195017,-342.74891025,2.65e-05,2]
[408198507,1773216219001,151.0,0.000102,120]
[408198515,1773216269752,151.0,0.000102,120]
[408198516,1773216306910,151.0,0.000102,120]
[408198517,1773216311507,-1400.0,2.632e-05,2]
[408198520,1773216358910,151.0,0.000102,120]
[408198522,1773216408832,151.0,0.000102,120]
[408198523,1773216439157,151.0,0.000102,120]
[408198525,1773216479299,151.0,0.000102,120]
[408198526,1773216526285,151.0,0.000102,120]
[408198527,1773216559321,151.0,0.000102,120]
[408198528,1773216597988,151.0,0.000102,120]
[408198529,1773216602916,189.77,2e-05,2]